Cogmind - Beta 15 @@@ ROGUE MODE // 2025.10.10 @ 16:22:43 Player: DietSnapple Result: Destroyed by as-53166 with Assembled Blade Performance ------------- Evolutions (0) 0 Regions Visited (2) 400 Robots Destroyed (20) 100 Value Destroyed (420) 420 Prototype IDs (0) 0 Alien Tech Used (0) 0 Bonus (0) 0 TOTAL SCORE: 920 Bonus ------- None Cogmind --------- Core Integrity 0/250 Matter 279/300 Energy 250/250 System Corruption 0% Temperature Cool (34) Movement Treading (160) Location -10/Mines Parts ------- > --- POWER (1) -------- Ion Engine > --- PROPULSION (2) --- Light Treads Light Treads > --- UTILITY (2) ------ Large Storage Unit Sensor Array > --- WEAPON (2) ------- Bore Cannon Rocket Launcher > --- INVENTORY (15) --- Ion Engine Light Treads Light Treads Flight Unit Scrap Suit Small Storage Unit Structural Scanner Sensor Array Light Armor Plating Medium Laser Light Assault Rifle Light Assault Rifle Datajack Peak State ------------ > --- POWER ------------ Ion Engine > --- PROPULSION ------- Light Treads Light Treads > --- UTILITY ---------- Large Storage Unit Sensor Array > --- WEAPON ----------- Bore Cannon Rocket Launcher > --- INVENTORY -------- Ion Engine Light Treads Light Treads Flight Unit Scrap Suit Small Storage Unit Structural Scanner Sensor Array Light Armor Plating Medium Laser Light Assault Rifle Light Assault Rifle Datajack [Rating: 14] Favorites ----------- Power Ion Engine Engine Ion Engine Propulsion Light Treads Treads Light Treads Wheel Wheel Utility Sensor Array Device Sensor Array Storage Large Storage Unit Weapon Assault Rifle Energy Gun Medium Laser Ballistic Gun Assault Rifle Ballistic Cannon Bore Cannon Launcher Rocket Launcher Special Melee Weapon Datajack Build | -11 -10 -10 ------- Run | Yrd Mat Min Slots Evolved . | . . . Power . | . . . Propulsion . | . . . Utility . | . . . Weapon . | . . . Parts Attached 20 | 6 9 5 Power 3 | 1 1 1 Engine 3 | 1 1 1 Core . | . . . Reactor . | . . . Propulsion 5 | 2 3 . Treads 3 | . 3 . Leg . | . . . Wheel 2 | 2 . . Hover . | . . . Flight . | . . . Utility 4 | 1 3 . Device 2 | . 2 . Storage 2 | 1 1 . Processor . | . . . Hackware . | . . . Protection . | . . . Artifact . | . . . Weapon 8 | 2 2 4 Energy Gun 2 | 1 1 . Energy Cannon . | . . . Ballistic Gun 2 | 1 . 1 Ballistic Cannon 1 | . . 1 Launcher 2 | . 1 1 Special Weapon . | . . . Impact Weapon . | . . . Slashing Weapon . | . . . Piercing Weapon . | . . . Special Melee Weapon 1 | . . 1 Unidentified Prototypes . | . . . Parts Lost 2 | . 1 1 Power 1 | . . 1 Propulsion 1 | . 1 . Utility . | . . . Weapon . | . . . Highest Loss Streak 1 | . 1 1 To Critical Strikes . | . . . Average Backups 10 | 2 9 13 Power 1 | . 1 1 Propulsion 2 | 1 2 3 Utility 3 | . 3 4 Weapon 2 | . 1 3 Tool/Special . | . . . Unused Backups 10 | . 1 9 Power 1 | . . 1 Propulsion 3 | . . 3 Utility 5 | . 1 4 Weapon 1 | . . 1 Tool/Special . | . . . Average Slot Usage (%) 99 | . 99 99 Engine 13 | . 14 13 Treads 24 | . 22 28 Wheel 3 | . 5 . Device 13 | . 13 14 Storage 14 | . 14 14 Energy Gun 10 | . 14 2 Ballistic Gun 17 | . 14 23 Peak Build Rating 14 | 6 8 14 Average Rating 7 | 4 7 9 On Entrance 4 | . 6 8 Naked Turns . | . . . Heaviest Build 39 | 14 30 39 Greatest Support 40 | 20 40 40 Greatest Overweight (x) 2 | . 2 . Average Overweight (x) . | . . . Largest Inventory Capacity 15 | 8 15 15 Average Capacity 14 | 7 14 15 Most Carried 15 | 4 11 15 Average Carried 10 | 2 9 14 Final Capacity 15 | 8 15 15 Final Carried 14 | 4 11 14 Class Distribution -------------------- 100% | Mutant Dominant Class ---------------- Mutant | -10/Materials Mutant | -10/Mines Resources | -11 -10 -10 ----------- Run | Yrd Mat Min Matter Collected 632 | 245 262 125 Remotely . | . . . Salvage Created 708 | . 608 100 Parts 31 | . 25 6 Haulers Intercepted 2 | . 2 . Recyclers Shooed 1 | . 1 . Parts Field Recycled . | . . . Retrieved Matter . | . . . Parts Self-Destructed . | . . . Prevented . | . . . Kills | -11 -10 -10 ------- Run | Yrd Mat Min Combat Hostiles Destroyed 19 | . 12 7 Guns 19 | . 12 7 Classes Destroyed 6 | . 5 1 Builder 1 | . 1 . Hauler 2 | . 2 . Operator 2 | . 2 . Swarmer 6 | . 3 3 Grunt 9 | . 9 . Assembled 4 | . . 4 Best Kill Streak 6 | . 6 3 Combat Bots Only 5 | . 5 3 Max Kills in Single Turn 2 | . 1 2 Gunslinging 1 | . . 1 Exploded . | . . . Melee . | . . . Uniques/NPCs Destroyed . | . . . Combat | -11 -10 -10 -------- Run | Yrd Mat Min Hostile Shots Fired 88 | . 57 31 Missed 23 | . 17 6 Hits 65 | . 40 25 Melee 4 | . . 4 Projectile 61 | . 40 21 Critical Strikes 1 | . 1 . Part Disruptions 1 | . . 1 Damage Taken 830 | . 465 365 Core 252 | . 140 112 Absorbed by Shields . | . . . Core Remaining (%) 100 | 100 . . Volleys Fired 78 | . 54 24 Largest 2 | . 2 2 Hottest 70 | . 70 70 Shots Fired 153 | . 108 45 Gun 150 | . 108 42 Cannon 3 | . . 3 Launcher . | . . . Special . | . . . Kinetic 95 | . 54 41 Thermal 58 | . 54 4 Explosive . | . . . Electromagnetic . | . . . Robot Hit Streak 10 | . 10 4 Robot Miss Streak 4 | . 4 4 Penetration Max . | . . . Secondary Targets 1 | . . 1 Max Gunslinging Chain 1 | . . 1 Shots Hit Robots 116 | . 80 36 Core Hits 42 | . 30 12 Critical Kills . | . . . Critical Parts Destroyed 1 | . . 1 Critical Strikes 7 | . 6 1 Burn 6 | . 6 . Destroy 1 | . . 1 Melee Attacks 13 | . . 13 Impact . | . . . Slashing . | . . . Piercing . | . . . Sneak Attacks . | . . . Combat Hostiles . | . . . Follow-up Attacks . | . . . Damage Inflicted 1263 | . 1007 256 Guns 1235 | . 1007 228 Cannons 28 | . . 28 Explosions . | . . . Melee . | . . . Ramming . | . . . Kinetic 715 | . 497 218 Thermal 548 | . 510 38 Explosive . | . . . Electromagnetic . | . . . Impact . | . . . Slashing . | . . . Piercing . | . . . Highest Corruption . | . . . Average Corruption . | . . . Corruption Purged . | . . . Corruption Blocked . | . . . Overload Shots . | . . . Overflow Damage . | . . . Projectiles . | . . . Explosions . | . . . Melee . | . . . Knockbacks . | . . . Impact . | . . . Kinetic . | . . . Secondary . | . . . Self-Inflicted Damage . | . . . Shots . | . . . Rammed . | . . . Targets Rammed . | . . . Kicked . | . . . Crushed . | . . . Highest Temperature 189 | . 189 36 Average Temperature 57 | . 61 21 Received Heat Transfer 289 | . 249 40 Siege Activations . | . . . Martial Activations . | . . . Shielding Activations . | . . . Robots Disrupted . | . . . Combat Hostiles . | . . . Robots Corrupted . | . . . Combat Hostiles . | . . . Parts Fried . | . . . Impact Corruptions . | . . . Robots Melted . | . . . Combat Hostiles . | . . . Parts Melted 4 | . 4 . Heat Transferred 2072 | . 1961 111 Parts Sabotaged . | . . . Parts Stolen . | . . . Parts Stripped . | . . . Power Chain Reactions . | . . . Alert | -11 -10 -10 ------- Run | Yrd Mat Min Maximum Alert Level . | . . . Low Security (%) 100 | 100 100 100 Level 1 . | . . . Level 2 . | . . . Level 3 . | . . . Level 4 . | . . . Level 5 . | . . . High Security . | . . . Max Security . | . . . Peak Influence 106 | . 106 70 Initial . | . . . Average 21 | . 29 7 Influence Increases 421 | . 351 70 Destroy 0b10 Robot/C 300 | . 240 60 Destroy 0b10 Robot/NC 25 | . 25 . Destroy Leader 54 | . 44 10 Successful Hack 39 | . 39 . Destroy Structure 3 | . 3 . Influence Decreases 421 | . 351 70 Time Decay 411 | . 341 70 Lost Part 10 | . 10 . Squads Dispatched 3 | . 3 . Investigation 1 | . 1 . Extermination . | . . . Reinforcement 2 | . 2 . Assault . | . . . Garrison . | . . . Intercept . | . . . Searches Triggered . | . . . Construction Impeded . | . . . Haulers Reinforced . | . . . Active Scanning Responses . | . . . Cargo Convoy Interrupts . | . . . Stealth | -11 -10 -10 --------- Run | Yrd Mat Min Distress Signals 3 | . 2 1 Communications Jammed . | . . . Distress Signals . | . . . Times Spotted 39 | . 30 9 Peak Tracking Total 7 | . 7 4 Tactical Retreats . | . . . Traps | -11 -10 -10 ------- Run | Yrd Mat Min Traps Triggered 1 | . 1 . Indirectly . | . . . Trap Hack Attempts . | . . . Triggered . | . . . Disarmed . | . . . Reprogrammed . | . . . Reused . | . . . Traps Extracted . | . . . Installed . | . . . Triggered . | . . . Machines | -11 -10 -10 ---------- Run | Yrd Mat Min Machines Disabled . | . . . Max in Single Turn . | . . . Machines Repaired . | . . . Machines Dismantled . | . . . Machines Sabotaged . | . . . Overloaded Fab Kills . | . . . Hacking | -11 -10 -10 --------- Run | Yrd Mat Min Machines Accessed 5 | . 5 . Terminals 4 | . 4 . Fabricators . | . . . Repair Stations . | . . . Recycling Units 1 | . 1 . Scanalyzers . | . . . Garrison Access . | . . . Total Hacks 13 | . 13 . Successful 6 | . 6 . Failed 7 | . 7 . Catastrophic . | . . . Database Lockouts . | . . . Manual 9 | . 9 . Terminals 10 | . 10 . Fabricators . | . . . Repair Stations . | . . . Recycling Units 3 | . 3 . Scanalyzers . | . . . Garrison Access . | . . . Terminal Hacks . | . . . Fabricator Hacks . | . . . Repair Station Hacks . | . . . Recycling Unit Hacks 2 | . 2 . Report Inventory 1 | . 1 . Retrieve Components 1 | . 1 . Scanalyzer . | . . . Garrison Access Hacks . | . . . Unauthorized Hacks 4 | . 4 . Terminals 4 | . 4 . Botnet 2 | . 2 . Operators 2 | . 2 . Fabricators . | . . . Repair Stations . | . . . Recycling Units . | . . . Scanalyzers . | . . . Garrison Access . | . . . Data Cores Recovered . | . . . Used . | . . . Hacking Detections 4 | . 4 . Full Trace Events . | . . . Feedback Events . | . . . Feedback Blocked . | . . . Robot Schematics Acquired . | . . . Robots Built . | . . . Authchips . | . . . Time . | . . . Total Robot Build Rating . | . . . Part Schematics Acquired . | . . . Parts Built . | . . . Authchips . | . . . Time . | . . . Total Part Build Rating . | . . . Parts Repaired . | . . . Time . | . . . Parts Recycled . | . . . Recycled Matter . | . . . Retrieved Matter . | . . . Retrieved Components 2 | . 2 . Parts Scanalyzed . | . . . Part Schematics Acquired . | . . . Parts Damaged . | . . . Bothacking | -11 -10 -10 ------------ Run | Yrd Mat Min Used RIF Installer . | . . . Robots Hacked . | . . . Non-combat . | . . . Combat . | . . . Robot Hacks Applied . | . . . Relay Couplers Released . | . . . Fabnet Peak Effective % . | . . . Robots Rewired . | . . . Allies Hacked . | . . . Hacks Repelled . | . . . Allies | -11 -10 -10 -------- Run | Yrd Mat Min Total Allies . | . . . Largest Group . | . . . Highest-Rated Group . | . . . Highest-Rated Ally . | . . . Total Orders . | . . . Ally Attacks . | . . . Total Damage . | . . . Kills . | . . . Allies Corrupted . | . . . Allies Melted . | . . . Intel | -11 -10 -10 ------- Run | Yrd Mat Min Active Infowar (turns) 1996 | . 1312 684 Sensors 1993 | . 1309 684 Structural 3 | . 3 . Robot Analysis Total . | . . . Derelict Logs Recovered . | . . . Drone Launches . | . . . Drone Recoveries . | . . . Exploration | -11 -10 -10 ------------- Run | Yrd Mat Min Turns Passed 2110 | 75 1351 684 Spaces Moved 1160 | 79 805 276 Core 2 | 2 . . Treads 879 | . 603 276 Legs . | . . . Wheels 279 | 77 202 . Hover . | . . . Flight . | . . . Fastest Speed 50 | 50 80 160 Average Speed 141 | 79 140 160 Slowest Speed 160 | 80 160 160 Overloaded Moves . | . . . Propulsion Burnouts . | . . . Robots Hopped . | . . . Potential Cave-ins . | . . . Cave-ins Triggered . | . . . Exploration Rate (%) 31 | 4 57 33 Regions Visited 2 Branch Regions 1 Pre-discovered Areas . | . . . Known Exits Taken . | . . . Unknown Exits Taken 2 | 1 1 . Scrap Searched 1 | . . 1 Spaces Dug . | . . . Terrain Destroyed . | . . . Melee . | . . . Projectile . | . . . AOE . | . . . Terrain Rammed . | . . . Walls Destroyed . | . . . Machines Disabled . | . . . Actions | -11 -10 -10 --------- Run | Yrd Mat Min Total 1473 | 88 914 471 Wait 166 | . 32 134 Move 1158 | 78 804 276 Hop . | . . . Pick Up 20 | 4 10 6 Fast Attach 7 | 6 1 . Attach 3 | . 1 2 Detach . | . . . Swap 10 | . 7 3 Drop 8 | . 5 3 Fire 78 | . 54 24 Melee 13 | . . 13 Ram . | . . . Kick . | . . . Crush . | . . . Escape Stasis . | . . . Rewire 10 | . . 10 Trap . | . . . Miscellaneous . | . . . Route ------- -11/Scrapyard -10/Materials (discovered 2 exits: [*Mat] / [*Min]) -10/Mines History --------- Turn | Location | Event 12 | -11/Scrapyard | Discovered new exit (range 15) 76 | -11/Scrapyard | Entered Materials 257 | -10/Materials | Discovered new exit (range 13) 303 | -10/Materials | Build established: Mutant 632 | -10/Materials | Core integrity fell below 50% 701 | -10/Materials | Discovered new exit (range 15) 1427 | -10/Materials | Entered Mines 1485 | -10/Mines | Found a Scrap Suit stashed away for nefarious purposes 1488 | -10/Mines | Found Scrap Suit 1596 | -10/Mines | Assembled infested the area 1601 | -10/Mines | Assisted by a Guerilla fighting off Assembled 1973 | -10/Mines | Core integrity fell below 20% 2061 | -10/Mines | Received a Rocket Launcher from a helpful Derelict 2111 | -10/Mines | Destroyed by as-53166 with Assembled Blade Last Messages --------------- 01977_ Acquired 17 matter. 02035_ as-59241 destroyed. 02038_ Acquired 16 matter. 02043_ Acquired 25 matter. 02046_ Acquired Bore Cannon. 02050_ A derelict emerges from the shadows. 02056_ EG-GGF(g): "Some of my friends down here think you need a mining laser when you travel the depths." 02057_ EG-GGF(g): "They are crazy." 02058_ EG-GGF(g): "Everyone knows a good old rocket launcher goes a long way." 02059_ EG-GGF(g): "Need to get rid of a swarm? Done. Need a big hole in the wall? Done." 02060_ EG-GGF(g): "Need a small hole in the wall? Leave that to the mining laser wimps, I say!" 02061_ EG-GGF(g): "Would you like a rocket launcher? I know I would if I were you, so I'm going to lend you mine." 02061_ EG-GGF(g) slips back into the shadows. 02066_ Dropped Grenade Launcher. 02066_ Acquired Rocket Launcher. 02078_ Dropped Assault Rifle. 02086_ Acquired 20 matter. 02109_ as-53166 suffers critical hit (Destroy). 02109_ Destroyed Asb. Hover Unit. Map ----- +----------------------------------------------------+ | ????????????????????????????????????? | | ????????????????????????????????????? | | ????????????????????????????????????? | | ????????????????????????????????????? | | ????????????????????????????????????? | | ????????????????????????????????????? | | ????????????????????????????????????? | | ????????????????????????????????????? | | ????????????????????????????????????? | | ????????????????????????????????????? | | ????????????????????????????????????? | | ????????????????????????????????????? | | ????????????????????????????????????? | | ????????????????????????????????????? | | ????????????????????????????????????? | | ????????????????????????????????????? | | ????????????????????????????????????? | | ????????????????????????????????????? | | ????????????????????????????????????? | | ????????????????????????????????????? | | ?????????####???????????????????????? | | ????????## ##??????????????????????? | | ????????#=* #??????????????????????? | | ????????#%= ##?????????????????????? | | ????????## ##### #???????????##### | | ???????### @ % a #???????????# | | ?????### a########???????????# ### | | ????## ##?????###??????????# #?? | | ???## ##?????# ??????????# #?? | | ???# [=%###???#?#??????????# #?? | | ???# !? ##### #??????????# #?? | | ??# ## ? ] ##=###????????# #?? | | ??# #?## *##%"%= ########## #?? | | ??## ???## =%!!%* % #?? | | ???## #????####### ##########?? | | ????###???????????## #??????????? | | ???????????????????### ##??????????? | | ?????????????????????####???????????? | | ????????????????????????????????????? | | | | | | | | | | | | | | | | | | | | | | | +----------------------------------------------------+ Best States ------------- Heat Dissipation 25 Energy Generation 10 Energy Capacity 250 Matter Stores 300 Matter Capacity 300 Sight Range 16 Robot Scan Range 14 Terrain Scan Density 10 Evasion (%) 44 Recoil Reduction 2 Item Schematics ----------------- None Robot Schematics ------------------ None Fabricated ------------ Nothing Repaired ---------- Nothing Alien Tech Used ----------------- None Achievements -------------- None Challenges ------------ None Game ------ Seed TachyonStructuralStripper Manual? 0 Play Time 00:12:54 Cumulative 30.5 hours Start 2025.10.10 @ 14:20:42 End 2025.10.10 @ 16:22:43 Sessions 1 Manual Loads 0 Difficulty Rogue Special Mode None Game No. 83 Rogue 76 Adventurer 7 Explorer 0 Win Type - Total 0 Types 0/0/0/0/0/0/0/0/0/0 Lore% 8 Gallery% 27 Achievement% 27 Wizard Run 0 Options --------- Layout 0 ASCII 0 Keyboard 1 Movement Vi Keybinds 0 Fullscreen 1 Font 18/SmallcapsGlow Map View 112x50 Zoom Use 5% Tactical HUD 1 Map Filters NONE Filters NONE Steam X RUN: 5626902c-2ff2-44ff-a507-56c761ed3a48